[Event "NJSK 2026 Jeugd C"]
[Site "Helmond, Netherlands"]
[Date "2026.04.29"]
[Round "7.7"]
[White "Thijssen, Freek"]
[Black "Huang, Vincent"]
[Result "1-0"]
[TimeControl "90min/40moves + 30sec/move"]
[WhiteTitle "-"]
[BlackTitle "-"]
[WhiteFideId "1091840"]
[BlackFideId "40104184"]
[WhiteElo "2159"]
[BlackElo "1855"]

1. e4 {[%clk 01:30:59]} c5 {[%clk 01:30:56]} {[%emt 00:00:05]} 2. Nf3 {[%clk
01:31:21]} {[%emt 00:00:08]} d6 {[%clk 01:31:20]} {[%emt 00:00:05]} 3. d4
{[%clk 01:31:46]} {[%emt 00:00:05]} cxd4 {[%clk 01:31:48]} {[%emt 00:00:03]} 4.
Nxd4 {[%clk 01:32:12]} {[%emt 00:00:03]} Nf6 {[%clk 01:32:11]} {[%emt
00:00:07]} 5. Nc3 {[%clk 01:32:36]} {[%emt 00:00:05]} g6 {[%clk 01:32:30]}
{[%emt 00:00:11]} 6. Be3 {[%clk 01:32:59]} {[%emt 00:00:07]} Bg7 {[%clk
01:32:54]} {[%emt 00:00:07]} 7. Qd2 {[%clk 01:33:24]} {[%emt 00:00:04]} Ng4
{[%clk 01:28:44]} {[%emt 00:04:41]} 8. Bb5+ {[%clk 01:15:30]} {[%emt 00:18:23]}
Bd7 {[%clk 01:28:39]} {[%emt 00:00:35]} 9. Bxd7+ {[%clk 01:11:46]} {[%emt
00:04:13]} Nxd7 {[%clk 01:28:17]} {[%emt 00:00:53]} 10. Bg5 {[%clk 01:01:16]}
{[%emt 00:11:00]} O-O {[%clk 01:14:48]} {[%emt 00:14:00]} 11. O-O {[%clk
00:56:50]} {[%emt 00:04:55]} Ngf6 {[%clk 01:06:50]} {[%emt 00:08:29]} 12. Rad1
{[%clk 00:52:42]} {[%emt 00:04:38]} Nc5 {[%clk 01:04:40]} {[%emt 00:02:41]} 13.
Rfe1 {[%clk 00:46:02]} {[%emt 00:07:08]} Re8 {[%clk 01:00:13]} {[%emt
00:04:58]} 14. h3 {[%clk 00:37:15]} {[%emt 00:09:16]} a6 {[%clk 00:56:21]}
{[%emt 00:04:23]} 15. f4 {[%clk 00:28:12]} {[%emt 00:09:32]} Qb8 {[%clk
00:37:03]} {[%emt 00:19:49]} 16. Kh1 {[%clk 00:18:24]} {[%emt 00:10:17]} Ncd7
{[%clk 00:28:22]} {[%emt 00:09:12]} 17. Qe2 {[%clk 00:12:55]} {[%emt 00:05:59]}
Nh5 {[%clk 00:23:16]} {[%emt 00:05:35]} 18. Qf3 {[%clk 00:09:41]} {[%emt
00:03:45]} h6 {[%clk 00:15:59]} {[%emt 00:07:48]} 19. Bh4 {[%clk 00:09:18]}
{[%emt 00:00:51]} Nhf6 {[%clk 00:09:35]} {[%emt 00:06:55]} 20. Bg3 {[%clk
00:08:00]} {[%emt 00:01:49]} e5 {[%clk 00:08:01]} {[%emt 00:02:04]} 21. Nb3
{[%clk 00:07:35]} {[%emt 00:00:54]} Nh5 {[%clk 00:06:52]} {[%emt 00:01:39]} 22.
f5 {[%clk 00:07:01]} {[%emt 00:01:03]} Nxg3+ {[%clk 00:05:21]} {[%emt
00:02:02]} 23. Qxg3 {[%clk 00:07:30]} {[%emt 00:00:01]} g5 {[%clk 00:03:57]}
{[%emt 00:01:54]} 24. Nd5 {[%clk 00:07:33]} {[%emt 00:00:26]} Qd8 {[%clk
00:02:50]} {[%emt 00:01:37]} 25. Rd3 {[%clk 00:07:13]} {[%emt 00:00:51]} Nf6
{[%clk 00:02:56]} {[%emt 00:00:23]} 26. Qf3 {[%clk 00:06:01]} {[%emt 00:01:43]}
Rc8 {[%clk 00:02:26]} {[%emt 00:01:00]} 27. Red1 {[%clk 00:05:52]} {[%emt
00:00:39]} Bf8 {[%clk 00:02:15]} {[%emt 00:00:41]} 28. c3 {[%clk 00:05:33]}
{[%emt 00:00:48]} Nxd5 {[%clk 00:02:03]} {[%emt 00:00:43]} 29. Rxd5 {[%clk
00:06:02]} {[%emt 00:00:01]} f6 {[%clk 00:02:15]} {[%emt 00:00:19]} 30. Qd3
{[%clk 00:04:20]} {[%emt 00:02:11]} Qc7 {[%clk 00:02:08]} {[%emt 00:00:38]} 31.
Nd2 {[%clk 00:04:24]} {[%emt 00:00:25]} b5 {[%clk 00:02:07]} {[%emt 00:00:31]}
32. Nf1 {[%clk 00:04:23]} {[%emt 00:00:31]} Qc4 {[%clk 00:02:16]} {[%emt
00:00:21]} 33. Qf3 {[%clk 00:02:59]} {[%emt 00:01:54]} Rc5 {[%clk 00:01:43]}
{[%emt 00:01:04]} 34. Ne3 {[%clk 00:02:43]} {[%emt 00:00:45]} Qxa2 {[%clk
00:01:25]} {[%emt 00:00:49]} 35. Qh5 {[%clk 00:03:00]} {[%emt 00:00:12]} Rxd5
{[%clk 00:01:22]} {[%emt 00:00:33]} 36. Nxd5 {[%clk 00:02:49]} {[%emt
00:00:41]} Re7 {[%clk 00:00:48]} {[%emt 00:01:05]} 37. Qg6+ {[%clk 00:03:04]}
{[%emt 00:00:13]} Kh8 {[%clk 00:00:55]} {[%emt 00:00:23]} 38. Qxf6+ {[%clk
00:03:00]} {[%emt 00:00:35]} Rg7 {[%clk 00:00:55]} {[%emt 00:00:30]} 39. Qxf8+
{[%clk 00:03:22]} {[%emt 00:00:07]} Kh7 {[%clk 00:01:14]} {[%emt 00:00:13]} 40.
Nf6# {[%clk 00:03:45]} {[%emt 00:00:06]} 1-0

[Event "NJSK 2026 Jeugd C"]
[Site "Helmond, Netherlands"]
[Date "2026.04.29"]
[Round "7.8"]
[White "Suthan, Aadvik"]
[Black "Koppenens, Oscar"]
[Result "1/2-1/2"]
[TimeControl "90min/40moves + 30sec/move"]
[WhiteTitle "-"]
[BlackTitle "-"]
[WhiteFideId "1095765"]
[BlackFideId "1087940"]
[WhiteElo "1822"]
[BlackElo "2036"]

1. e4 {[%clk 01:30:58]} c5 {[%clk 01:30:55]} {[%emt 00:00:07]} 2. Nf3 {[%clk
01:31:08]} {[%emt 00:00:19]} d6 {[%clk 01:30:55]} {[%emt 00:00:31]} 3. d4
{[%clk 01:31:23]} {[%emt 00:00:14]} cxd4 {[%clk 01:31:20]} {[%emt 00:00:05]} 4.
Nxd4 {[%clk 01:31:06]} {[%emt 00:00:46]} Nf6 {[%clk 01:31:45]} {[%emt
00:00:06]} 5. Nc3 {[%clk 01:31:06]} {[%emt 00:00:30]} a6 {[%clk 01:31:13]}
{[%emt 00:01:03]} 6. f3 {[%clk 01:30:41]} {[%emt 00:00:54]} e6 {[%clk
01:30:30]} {[%emt 00:01:13]} 7. Be3 {[%clk 01:29:31]} {[%emt 00:01:39]} Nbd7
{[%clk 01:27:23]} {[%emt 00:03:38]} 8. Qd2 {[%clk 01:28:21]} {[%emt 00:01:40]}
b5 {[%clk 01:26:34]} {[%emt 00:01:20]} 9. Be2 {[%clk 01:27:01]} {[%emt
00:01:50]} Bb7 {[%clk 01:26:42]} {[%emt 00:00:21]} 10. O-O {[%clk 01:26:50]}
{[%emt 00:00:41]} Be7 {[%clk 01:26:59]} {[%emt 00:00:13]} 11. a4 {[%clk
01:23:14]} {[%emt 00:04:06]} b4 {[%clk 01:17:01]} {[%emt 00:10:28]} 12. Nd1
{[%clk 01:22:27]} {[%emt 00:01:18]} d5 {[%clk 01:17:00]} {[%emt 00:00:31]} 13.
exd5 {[%clk 01:18:01]} {[%emt 00:04:56]} Nxd5 {[%clk 01:17:24]} {[%emt
00:00:05]} 14. Bf2 {[%clk 01:16:20]} {[%emt 00:02:10]} O-O {[%clk 01:16:12]}
{[%emt 00:01:43]} 15. Bc4 {[%clk 01:08:15]} {[%emt 00:08:37]} N5b6 {[%clk
01:06:06]} {[%emt 00:10:35]} 16. Bd3 {[%clk 01:05:42]} {[%emt 00:03:03]} Ne5
{[%clk 01:05:41]} {[%emt 00:00:51]} 17. Qe2 {[%clk 01:04:31]} {[%emt 00:01:39]}
Bf6 {[%clk 01:03:53]} {[%emt 00:02:23]} 18. Nb3 {[%clk 01:00:44]} {[%emt
00:04:18]} Nd5 {[%clk 01:03:05]} {[%emt 00:01:18]} 19. Be4 {[%clk 00:58:41]}
{[%emt 00:02:34]} a5 {[%clk 01:00:34]} {[%emt 00:03:00]} 20. Nc5 {[%clk
00:53:49]} {[%emt 00:05:23]} Bc6 {[%clk 01:00:48]} {[%emt 00:00:15]} 21. Bxd5
{[%clk 00:52:52]} {[%emt 00:01:27]} exd5 {[%clk 00:59:46]} {[%emt 00:01:33]} 22.
c3 {[%clk 00:47:01]} {[%emt 00:06:21]} Re8 {[%clk 00:58:42]} {[%emt 00:01:33]}
23. Nd3 {[%clk 00:44:47]} {[%emt 00:02:44]} Qd6 {[%clk 00:57:37]} {[%emt
00:01:34]} 24. Nxe5 {[%clk 00:40:57]} {[%emt 00:04:20]} Bxe5 {[%clk 00:58:00]}
{[%emt 00:00:09]} 25. g3 {[%clk 00:36:45]} {[%emt 00:04:41]} bxc3 {[%clk
00:56:15]} {[%emt 00:02:15]} 26. Qc2 {[%clk 00:36:39]} {[%emt 00:00:37]} cxb2
{[%clk 00:54:23]} {[%emt 00:02:22]} 27. Nxb2 {[%clk 00:35:51]} {[%emt
00:01:19]} Rac8 {[%clk 00:50:28]} {[%emt 00:04:24]} 28. Rac1 {[%clk 00:33:44]}
{[%emt 00:02:36]} Bb7 {[%clk 00:41:14]} {[%emt 00:09:44]} 29. Qd2 {[%clk
00:30:43]} {[%emt 00:03:32]} Rxc1 {[%clk 00:40:51]} {[%emt 00:00:52]} 30. Rxc1
{[%clk 00:28:24]} {[%emt 00:02:50]} Qf6 {[%clk 00:39:16]} {[%emt 00:02:05]} 31.
Nd3 {[%clk 00:26:00]} {[%emt 00:02:54]} Qxf3 {[%clk 00:37:14]} {[%emt
00:02:32]} 32. Nxe5 {[%clk 00:26:03]} {[%emt 00:00:27]} Rxe5 {[%clk 00:37:39]}
{[%emt 00:00:05]} 33. Qc3 {[%clk 00:26:18]} {[%emt 00:00:16]} Qxc3 {[%clk
00:34:02]} {[%emt 00:04:06]} 34. Rxc3 {[%clk 00:26:32]} {[%emt 00:00:16]} Re4
{[%clk 00:30:21]} {[%emt 00:04:11]} 35. Bb6 {[%clk 00:25:01]} {[%emt 00:02:02]}
Rc4 {[%clk 00:22:47]} {[%emt 00:08:03]} 36. Rxc4 {[%emt 00:02:03]} dxc4 {[%clk
00:22:57]} {[%emt 00:00:09]} 37. Bxa5 {[%clk 00:23:57]} {[%emt 00:00:12]} Bc6
{[%clk 00:23:24]} {[%emt 00:00:03]} 38. Bc3 {[%clk 00:24:19]} {[%emt 00:00:08]}
Bxa4 {[%clk 00:23:50]} {[%emt 00:00:04]} 39. Kf2 {[%clk 00:24:18]} {[%emt
00:00:29]} f5 {[%clk 00:24:11]} {[%emt 00:00:10]} 40. Kf3 {[%clk 00:24:39]}
{[%emt 00:00:10]} Kf7 {[%clk 00:24:17]} {[%emt 00:00:24]} 41. Kf4 {[%clk
00:25:03]} {[%emt 00:00:06]} g6 {[%clk 00:24:07]} {[%emt 00:00:40]} 42. Ke5
{[%clk 00:25:14]} {[%emt 00:00:18]} Bc2 {[%clk 00:24:29]} {[%emt 00:00:09]} 43.
h4 {[%clk 00:25:23]} {[%emt 00:00:21]} Bd3 {[%clk 00:23:44]} {[%emt 00:01:15]}
44. Bd2 {[%clk 00:25:27]} {[%emt 00:00:25]} Ke7 {[%clk 00:24:06]} {[%emt
00:00:09]} 45. Kd5 {[%clk 00:25:23]} {[%emt 00:00:33]} Kd7 {[%clk 00:24:28]}
{[%emt 00:00:09]} 46. Bf4 {[%clk 00:25:14]} {[%emt 00:00:39]} Ke7 {[%clk
00:22:33]} {[%emt 00:02:23]} 47. Bg5+ {[%clk 00:24:06]} {[%emt 00:01:39]} Kf7
{[%clk 00:21:40]} {[%emt 00:01:24]} 48. Bh6 {[%clk 00:24:25]} {[%emt 00:00:10]}
Be2 {[%clk 00:22:01]} {[%emt 00:00:09]} 49. Kd4 {[%clk 00:24:24]} {[%emt
00:00:31]} Ke6 {[%clk 00:21:59]} {[%emt 00:00:33]} 50. Bf4 {[%clk 00:24:47]}
{[%emt 00:00:07]} Kd7 {[%clk 00:21:55]} {[%emt 00:00:33]} 51. Bd2 {[%clk
00:19:43]} {[%emt 00:05:34]} Kc6 {[%clk 00:22:00]} {[%emt 00:00:25]} 52. Bf4
{[%clk 00:19:55]} {[%emt 00:00:18]} Kb5 {[%clk 00:22:19]} {[%emt 00:00:11]} 53.
Bd2 {[%clk 00:20:12]} {[%emt 00:00:13]} Ka4 {[%clk 00:22:43]} {[%emt 00:00:07]}
54. Kc3 {[%clk 00:20:14]} {[%emt 00:00:26]} Bf1 {[%clk 00:22:52]} {[%emt
00:00:22]} 55. Bc1 {[%clk 00:20:29]} {[%emt 00:00:16]} Kb5 {[%clk 00:23:19]}
{[%emt 00:00:04]} 56. Be3 {[%clk 00:20:21]} {[%emt 00:00:37]} Kc6 {[%clk
00:23:37]} {[%emt 00:00:12]} 57. Kd4 {[%clk 00:20:45]} {[%emt 00:00:05]} Be2
{[%clk 00:22:56]} {[%emt 00:01:11]} 58. Bh6 {[%clk 00:19:58]} {[%emt 00:01:17]}
Kb5 {[%clk 00:22:23]} {[%emt 00:01:03]} 59. Bf8 {[%clk 00:19:45]} {[%emt
00:00:44]} Kc6 {[%clk 00:19:32]} {[%emt 00:03:21]} 60. Bb4 {[%clk 00:19:13]}
{[%emt 00:01:02]} Kd7 {[%clk 00:19:24]} {[%emt 00:00:32]} 61. Bf8 {[%clk
00:18:48]} {[%emt 00:01:01]} Ke6 {[%clk 00:19:46]} {[%emt 00:00:08]} 62. Bh6
{[%clk 00:19:06]} {[%emt 00:00:11]} Kf6 {[%clk 00:20:05]} {[%emt 00:00:11]} 63.
Bd2 {[%clk 00:18:24]} {[%emt 00:01:11]} Kg7 {[%clk 00:20:25]} {[%emt 00:00:10]}
64. Ke5 {[%clk 00:18:37]} {[%emt 00:00:17]} h6 {[%clk 00:20:49]} {[%emt
00:00:08]} 65. Ke6 {[%clk 00:18:41]} {[%emt 00:00:26]} Bd3 {[%clk 00:20:32]}
{[%emt 00:00:39]} 66. Ke7 {[%clk 00:18:35]} {[%emt 00:00:43]} Bc2 {[%clk
00:20:13]} {[%emt 00:00:50]} 67. Bc3 {[%clk 00:18:53]} {[%emt 00:00:12]} Kh7
{[%clk 00:20:39]} {[%emt 00:00:04]} 68. Kf6 {[%clk 00:19:10]} {[%emt 00:00:14]}
Kg8 {[%clk 00:20:08]} {[%emt 00:01:01]} 69. Bb4 {[%clk 00:19:17]} {[%emt
00:00:22]} Bd3 {[%clk 00:19:55]} {[%emt 00:00:41]} 70. Bd2 {[%clk 00:18:13]}
{[%emt 00:01:36]} h5 {[%clk 00:16:55]} {[%emt 00:03:29]} 71. Bb4 {[%clk
00:18:22]} {[%emt 00:00:22]} Bb1 {[%clk 00:16:58]} {[%emt 00:00:26]} 72. Ba3
{[%clk 00:16:57]} {[%emt 00:01:57]} c3 {[%clk 00:16:07]} {[%emt 00:01:20]} 73.
Bb4 {[%clk 00:17:04]} {[%emt 00:00:23]} c2 {[%clk 00:16:30]} {[%emt 00:00:07]}
74. Bd2 {[%clk 00:17:20]} {[%emt 00:00:14]} Kh8 {[%clk 00:16:14]} {[%emt
00:00:46]} 75. Bc1 {[%clk 00:15:11]} {[%emt 00:02:40]} Kh7 {[%clk 00:16:38]}
{[%emt 00:00:06]} 76. Kf7 {[%clk 00:14:50]} {[%emt 00:00:51]} Ba2+ {[%clk
00:17:04]} {[%emt 00:00:04]} 77. Kf8 {[%clk 00:14:47]} {[%emt 00:00:33]} Bc4
{[%clk 00:17:22]} {[%emt 00:00:12]} 78. Ke7 {[%clk 00:14:47]} {[%emt 00:00:30]}
Kg7 {[%clk 00:17:41]} {[%emt 00:00:11]} 79. Bb2 {[%clk 00:15:05]} {[%emt
00:00:12]} Kg8 {[%clk 00:18:04]} {[%emt 00:00:07]} 80. Bc1 {[%clk 00:15:23]}
{[%emt 00:00:12]} Bd3 {[%clk 00:18:22]} {[%emt 00:00:12]} 81. Kf6 {[%clk
00:15:17]} {[%emt 00:00:36]} Kf8 {[%clk 00:18:47]} {[%emt 00:00:06]} 82. Bf4
{[%clk 00:15:35]} {[%emt 00:00:11]} Be2 {[%clk 00:15:13]} {[%emt 00:04:03]} 83.
Kxg6 {[%clk 00:15:00]} {[%emt 00:01:06]} 1/2-1/2

[Event "NJSK 2026 Jeugd C"]
[Site "Helmond, Netherlands"]
[Date "2026.04.29"]
[Round "7.9"]
[White "Huang, Ziyang"]
[Black "Omnes, Tiago"]
[Result "0-1"]
[TimeControl "90min/40moves + 30sec/move"]
[WhiteTitle "-"]
[BlackTitle "-"]
[WhiteFideId "40105288"]
[BlackFideId "1091867"]
[WhiteElo "1721"]
[BlackElo "1990"]

1. e4 {[%clk 01:30:57]} {[%emt 00:00:02]} e5 {[%clk 01:30:54]} {[%emt
00:00:06]} 2. Nf3 {[%clk 01:31:18]} {[%emt 00:00:09]} Nc6 {[%clk 01:31:20]}
{[%emt 00:00:05]} 3. d4 {[%clk 01:31:33]} {[%emt 00:00:15]} exd4 {[%clk
01:31:45]} {[%emt 00:00:05]} 4. Bc4 {[%clk 01:31:46]} {[%emt 00:00:17]} Nf6
{[%clk 01:32:05]} {[%emt 00:00:10]} 5. e5 {[%emt 00:00:38]} d5 {[%clk
01:32:34]} 6. Bb5 {[%clk 01:32:02]} {[%emt 00:00:07]} Ne4 {[%clk 01:33:01]}
{[%emt 00:00:03]} 7. Nxd4 {[%clk 01:32:24]} {[%emt 00:00:07]} Bd7 {[%clk
01:33:29]} {[%emt 00:00:02]} 8. Bxc6 {[%clk 01:32:50]} {[%emt 00:00:04]} bxc6
{[%clk 01:33:49]} {[%emt 00:00:10]} 9. O-O {[%clk 01:33:18]} {[%emt 00:00:02]}
Bc5 {[%clk 01:34:13]} {[%emt 00:00:07]} 10. f3 {[%clk 01:33:40]} {[%emt
00:00:07]} Ng5 {[%clk 01:34:40]} {[%emt 00:00:03]} 11. f4 {[%clk 01:34:04]}
{[%emt 00:00:06]} Ne4 {[%clk 01:35:08]} {[%emt 00:00:02]} 12. Be3 {[%clk
01:34:24]} {[%emt 00:00:11]} Bb6 {[%clk 01:35:31]} {[%emt 00:00:07]} 13. Nd2
{[%clk 01:34:45]} {[%emt 00:00:08]} Nxd2 {[%clk 01:35:59]} {[%emt 00:00:02]} 14.
Qxd2 {[%clk 01:35:09]} {[%emt 00:00:06]} c5 {[%clk 01:36:22]} {[%emt 00:00:08]}
15. Nf3 {[%clk 01:35:35]} {[%emt 00:00:04]} c6 {[%clk 01:30:47]} {[%emt
00:06:05]} 16. c3 {[%clk 01:31:33]} {[%emt 00:04:32]} O-O {[%clk 01:29:13]}
{[%emt 00:02:03]} 17. Qd3 {[%clk 01:28:23]} {[%emt 00:03:37]} f6 {[%clk
01:28:28]} {[%emt 00:01:18]} 18. exf6 {[%clk 01:26:53]} {[%emt 00:02:00]} Qxf6
{[%clk 01:27:53]} {[%emt 00:01:06]} 19. Ne5 {[%clk 01:26:03]} {[%emt 00:01:19]}
Bf5 {[%clk 01:25:31]} {[%emt 00:02:51]} 20. Qd2 {[%clk 01:24:54]} {[%emt
00:01:38]} Rad8 {[%clk 01:25:24]} {[%emt 00:00:38]} 21. Rfe1 {[%emt 00:19:51]}
d4 {[%clk 01:14:31]} 22. Bf2 {[%clk 01:17:10]} {[%emt 00:00:18]} Ba5 {[%clk
01:14:07]} {[%emt 00:00:53]} 23. Qc1 {[%clk 01:10:55]} {[%emt 00:06:46]} d3
{[%clk 00:57:27]} {[%emt 00:17:11]} 24. Qd2 {[%clk 01:04:38]} {[%emt 00:06:46]}
Bb6 {[%clk 00:55:19]} {[%emt 00:02:39]} 25. a4 {[%clk 01:04:25]} {[%emt
00:00:42]} c4 {[%clk 00:40:23]} {[%emt 00:15:26]} 26. Bxb6 {[%clk 01:03:43]}
{[%emt 00:01:12]} axb6 {[%clk 00:40:50]} {[%emt 00:00:03]} 27. Nxc4 {[%clk
01:03:25]} {[%emt 00:00:49]} c5 {[%clk 00:38:50]} {[%emt 00:02:29]} 28. b3
{[%clk 00:48:30]} {[%emt 00:15:25]} Qc6 {[%clk 00:28:48]} {[%emt 00:10:30]} 29.
Re3 {[%clk 00:42:22]} {[%emt 00:06:40]} Rf6 {[%clk 00:21:59]} {[%emt 00:07:19]}
30. Rae1 {[%clk 00:38:28]} {[%emt 00:04:22]} h5 {[%clk 00:15:55]} {[%emt
00:06:35]} 31. Ne5 {[%clk 00:28:38]} {[%emt 00:10:20]} Qd5 {[%clk 00:14:31]}
{[%emt 00:01:54]} 32. c4 {[%clk 00:28:46]} {[%emt 00:00:23]} Qd4 {[%clk
00:14:28]} {[%emt 00:00:31]} 33. Nf3 {[%clk 00:28:57]} {[%emt 00:00:21]} Qd6
{[%clk 00:13:02]} {[%emt 00:01:56]} 34. Ng5 {[%clk 00:26:30]} {[%emt 00:02:57]}
Rdf8 {[%clk 00:11:07]} {[%emt 00:02:25]} 35. Rf1 {[%clk 00:17:33]} {[%emt
00:09:27]} Qd4 {[%clk 00:10:23]} {[%emt 00:01:13]} 36. Kh1 {[%clk 00:17:21]}
{[%emt 00:00:43]} Qd6 {[%clk 00:03:43]} {[%emt 00:07:09]} 37. Ne4 {[%clk
00:17:23]} {[%emt 00:00:29]} Bxe4 {[%clk 00:04:11]} {[%emt 00:00:01]} 38. Rxe4
{[%emt 00:03:15]} g5 {[%clk 00:01:39]} 39. h3 {[%clk 00:12:40]} {[%emt
00:05:31]} gxf4 {[%clk 00:01:39]} {[%emt 00:00:30]} 40. Rf3 {[%clk 00:12:36]}
{[%emt 00:00:34]} Rd8 {[%clk 00:01:25]} {[%emt 00:00:44]} 41. Rfxf4 {[%clk
00:12:11]} {[%emt 00:00:55]} Rdf8 {[%clk 00:00:48]} {[%emt 00:01:08]} 42. Rxf6
{[%clk 00:11:36]} {[%emt 00:01:04]} Rxf6 {[%clk 00:01:14]} {[%emt 00:00:04]} 43.
Re1 {[%clk 00:11:41]} {[%emt 00:00:25]} Qg3 {[%clk 00:00:45]} {[%emt 00:00:59]}
44. Re8+ {[%clk 00:09:48]} {[%emt 00:02:23]} Kf7 {[%clk 00:00:58]} {[%emt
00:00:16]} 45. Qe1 {[%clk 00:09:06]} {[%emt 00:01:13]} Rf1+ {[%clk 00:00:38]}
{[%emt 00:00:50]} 46. Qxf1+ {[%clk 00:09:26]} {[%emt 00:00:11]} Kxe8 {[%clk
00:01:05]} {[%emt 00:00:02]} 47. Qd1 {[%clk 00:08:00]} {[%emt 00:01:56]} Kd8
{[%clk 00:00:41]} {[%emt 00:00:55]} 48. Kg1 {[%clk 00:06:48]} {[%emt 00:01:41]}
Qe3+ {[%clk 00:01:00]} {[%emt 00:00:11]} 49. Kf1 {[%clk 00:06:34]} {[%emt
00:00:44]} d2 {[%clk 00:01:17]} {[%emt 00:00:12]} 50. h4 {[%clk 00:05:23]}
{[%emt 00:01:41]} Kc7 {[%clk 00:01:19]} {[%emt 00:00:28]} 51. g3 {[%clk
00:05:09]} {[%emt 00:00:44]} Kb8 {[%clk 00:01:28]} {[%emt 00:00:21]} 52. Qe2
{[%clk 00:04:35]} {[%emt 00:01:04]} Qd4 {[%clk 00:01:47]} {[%emt 00:00:11]} 53.
Qd1 {[%clk 00:03:30]} {[%emt 00:01:34]} Qd3+ {[%clk 00:01:23]} {[%emt
00:00:54]} 54. Kf2 {[%clk 00:03:33]} {[%emt 00:00:27]} Ka7 {[%clk 00:01:42]}
{[%emt 00:00:12]} 55. Kg2 {[%clk 00:03:05]} {[%emt 00:00:58]} Ka6 {[%clk
00:02:00]} {[%emt 00:00:13]} 56. Kf2 {[%clk 00:03:19]} {[%emt 00:00:16]} Ka5
{[%clk 00:02:23]} {[%emt 00:00:06]} 57. Kg2 {[%clk 00:03:25]} {[%emt 00:00:24]}
Kb4 {[%clk 00:02:48]} {[%emt 00:00:05]} 58. Kf2 {[%clk 00:03:40]} {[%emt
00:00:15]} Kc3 {[%clk 00:03:05]} {[%emt 00:00:11]} 59. Kg2 {[%clk 00:03:24]}
{[%emt 00:00:48]} Qc2 {[%clk 00:03:27]} {[%emt 00:00:08]} 60. Qf3+ {[%clk
00:03:32]} {[%emt 00:00:22]} Kb2 {[%clk 00:03:39]} {[%emt 00:00:18]} 61. Qf6+
{[%clk 00:03:43]} {[%emt 00:00:19]} Ka2 {[%clk 00:04:04]} {[%emt 00:00:05]} 0-1

[Event "NJSK 2026 Jeugd C"]
[Site "Helmond, Netherlands"]
[Date "2026.04.29"]
[Round "7.10"]
[White "Okita, Ryoga"]
[Black "Nadrshin, Oleg"]
[Result "0-1"]
[TimeControl "90min/40moves + 30sec/move"]
[WhiteTitle "-"]
[BlackTitle "-"]
[WhiteFideId "1090666"]
[BlackFideId "40111873"]
[WhiteElo "1812"]
[BlackElo "1894"]

1. e4 {[%clk 01:30:52]} {[%emt 00:00:07]} c5 {[%clk 01:30:56]} {[%emt
00:00:05]} 2. Nc3 {[%clk 01:31:15]} {[%emt 00:00:07]} Nc6 {[%clk 01:31:21]}
{[%emt 00:00:06]} 3. Bb5 {[%clk 01:31:34]} {[%emt 00:00:10]} Nd4 {[%clk
01:31:19]} {[%emt 00:00:31]} 4. Nf3 {[%clk 01:31:53]} {[%emt 00:00:11]} Nxb5
{[%clk 01:26:46]} {[%emt 00:05:03]} 5. Nxb5 {[%clk 01:32:14]} {[%emt 00:00:09]}
a6 {[%clk 01:22:37]} {[%emt 00:04:40]} 6. Nc3 {[%clk 01:32:34]} {[%emt
00:00:10]} e6 {[%clk 01:22:31]} {[%emt 00:00:36]} 7. O-O {[%clk 01:32:35]}
{[%emt 00:00:25]} Ne7 {[%clk 01:19:47]} {[%emt 00:03:18]} 8. d4 {[%clk
01:32:20]} {[%emt 00:00:44]} cxd4 {[%clk 01:19:24]} {[%emt 00:00:54]} 9. Nxd4
{[%clk 01:32:32]} {[%emt 00:00:17]} Nc6 {[%clk 01:16:30]} {[%emt 00:03:24]} 10.
Be3 {[%clk 01:29:59]} {[%emt 00:03:03]} Be7 {[%clk 01:11:09]} {[%emt 00:05:52]}
11. f4 {[%clk 01:27:38]} {[%emt 00:02:51]} O-O {[%clk 01:06:21]} {[%emt
00:05:16]} 12. Kh1 {[%clk 01:26:31]} {[%emt 00:01:37]} d6 {[%clk 00:58:14]}
{[%emt 00:08:40]} 13. f5 {[%clk 01:23:39]} {[%emt 00:03:22]} Ne5 {[%clk
00:50:27]} {[%emt 00:08:18]} 14. Qh5 {[%clk 01:14:19]} {[%emt 00:09:49]} b5
{[%clk 00:44:59]} {[%emt 00:05:59]} 15. Bf4 {[%clk 01:10:07]} {[%emt 00:04:41]}
b4 {[%clk 00:38:02]} {[%emt 00:07:28]} 16. Nce2 {[%clk 01:07:57]} {[%emt
00:02:39]} Bf6 {[%clk 00:32:03]} {[%emt 00:06:30]} 17. Rad1 {[%clk 00:59:51]}
{[%emt 00:08:36]} Qe7 {[%clk 00:24:23]} {[%emt 00:08:09]} 18. Nf3 {[%clk
00:45:16]} {[%emt 00:15:04]} exf5 {[%clk 00:19:51]} {[%emt 00:05:04]} 19. Bxe5
{[%clk 00:39:51]} {[%emt 00:05:55]} dxe5 {[%clk 00:18:58]} {[%emt 00:01:22]} 20.
exf5 {[%clk 00:39:13]} {[%emt 00:01:07]} g6 {[%clk 00:17:20]} {[%emt 00:02:08]}
21. Qh3 {[%clk 00:28:46]} {[%emt 00:10:57]} Bxf5 {[%clk 00:17:22]} {[%emt
00:00:29]} 22. Qg3 {[%clk 00:28:50]} {[%emt 00:00:25]} Bxc2 {[%clk 00:16:23]}
{[%emt 00:01:30]} 23. Rd2 {[%clk 00:27:55]} {[%emt 00:01:25]} Be4 {[%clk
00:15:10]} {[%emt 00:01:44]} 24. Neg1 {[%clk 00:26:07]} {[%emt 00:02:16]} Rfd8
{[%clk 00:13:47]} {[%emt 00:01:54]} 25. Qe1 {[%clk 00:21:13]} {[%emt 00:05:24]}
Bd3 {[%clk 00:12:33]} {[%emt 00:01:44]} 26. Ne2 {[%clk 00:20:20]} {[%emt
00:01:23]} e4 {[%clk 00:12:25]} {[%emt 00:00:39]} 27. Nfg1 {[%clk 00:18:32]}
{[%emt 00:02:17]} Bg5 {[%clk 00:11:24]} {[%emt 00:01:32]} 28. Rd1 {[%clk
00:17:41]} {[%emt 00:01:20]} Rac8 {[%clk 00:11:00]} {[%emt 00:00:55]} 29. Nh3
{[%clk 00:15:07]} {[%emt 00:03:03]} Be3 {[%clk 00:09:44]} {[%emt 00:01:46]} 30.
Nf2 {[%clk 00:09:04]} {[%emt 00:06:32]} Rc2 {[%clk 00:08:51]} {[%emt 00:01:24]}
31. Nd4 {[%clk 00:03:58]} {[%emt 00:05:36]} Bxf2 {[%clk 00:05:11]} {[%emt
00:04:10]} 32. Rxf2 {[%clk 00:04:14]} {[%emt 00:00:15]} Rxf2 {[%clk 00:05:12]}
{[%emt 00:00:29]} 33. Nc6 {[%clk 00:03:02]} {[%emt 00:01:42]} Qf6 {[%clk
00:04:51]} {[%emt 00:00:51]} 34. Qg1 {[%clk 00:01:58]} {[%emt 00:01:32]} Re8
{[%clk 00:03:24]} {[%emt 00:01:58]} 35. Nxb4 {[%clk 00:01:11]} {[%emt
00:01:17]} Rf1 {[%clk 00:03:19]} {[%emt 00:00:35]} 0-1